fUST/lending_fUST_20240419
["ID","MTS","AMOUNT","RATE_DAILY","PERIOD"]
[322875587,1713456638688,-625.17369344,0.00026899,2]
[322875591,1713456638701,-924.08366698,0.00026899,2]
[322875593,1713456638710,-659.93644972,0.00026899,2]
[322875831,1713456641228,-6262.38658116,0.00026899,2]
[322875833,1713456641237,-1476.80264368,0.000269,3]
[322875835,1713456641247,-300.0,0.00026999,2]
[322875837,1713456641256,-17387.04885557,0.00027,2]
[322875839,1713456641265,-382.072666,0.00027397,2]
[322875841,1713456641274,-183.499013,0.00027397,2]
[322875843,1713456641286,-166.666666,0.00027397,2]
[322875845,1713456641295,-5876.1142799,0.00027469,2]
[322875847,1713456641307,-2632.42921304,0.00027469,2]
[322875849,1713456641316,-2006.74598228,0.00027469,2]
[322876344,1713457837837,-1549.25736042,0.00024969,2]
[322876345,1713457837846,-269.05830204,0.0002497,2]
[322876346,1713457837855,-2710.40556105,0.00024974,2]
[322876347,1713457837864,-300.0,0.00024999,2]
[322876348,1713457837874,-1351.27877649,0.00025,2]
[322876479,1713459038006,-976.86548412,0.00021785,2]
[322876481,1713459038016,-296.50471005,0.00021786,2]
[322876528,1713459040197,-1252.75265037,0.00021786,2]
[322876530,1713459040210,-1263.86306027,0.0002179,2]
[322876704,1713459414065,24880.0,0.00020957,2]
[322876776,1713460238295,-1549.25736042,0.00021997,2]
[322876777,1713460238305,-300.0,0.00021998,2]
[322876778,1713460238314,-505.13508461,0.00021999,2]
[322876779,1713460238323,-574.3435019,0.00021999,2]
[322876780,1713460238333,-31268.344993,0.00021999,2]
[322876781,1713460238342,-21419.72122351,0.00022,2]
[322876782,1713460238352,-420.0,0.00024198,2]
[322876783,1713460238361,-164.0564709,0.00024888,2]
[322876784,1713460238371,-761.58250284,0.00025,2]
[322876785,1713460238380,-882.99730547,0.00026123,2]
[322876787,1713460238389,-179.75198,0.00026317,2]
[322876789,1713460238398,-153.0,0.000264,2]
[322876790,1713460238407,-153.0,0.000264,2]
[322876791,1713460238415,-153.0,0.000264,2]
[322876792,1713460238424,-153.0,0.000266,2]
[322876793,1713460238433,-153.0,0.000266,2]
[322876794,1713460238441,-153.0,0.000266,2]
[322876795,1713460238450,-153.0,0.000266,2]
[322876796,1713460238460,-153.0,0.000266,2]
[322876797,1713460238469,-153.0,0.000266,2]
[322876798,1713460238478,-153.0,0.000266,2]
[322876799,1713460238487,-153.0,0.000266,2]
[322876800,1713460238496,-153.0,0.000266,2]
[322876801,1713460238506,-153.0,0.00026603,2]
[322876802,1713460238515,-153.0,0.00026603,2]
[322876803,1713460238524,-587.0,0.00026618,2]
[322876804,1713460238533,-153.0,0.00026678,2]
[322876805,1713460238543,-153.0,0.00026678,2]
[322876806,1713460238552,-153.0,0.00026678,2]
[322876807,1713460238561,-153.0,0.00026678,2]
[322876808,1713460238570,-153.0,0.000267,2]
[322876809,1713460238579,-153.0,0.000267,2]
[322876810,1713460238588,-153.0,0.000267,2]
[322876811,1713460238597,-153.0,0.000267,2]
[322876812,1713460238606,-153.0,0.000267,2]
[322876813,1713460238616,-153.0,0.000267,2]
[322876814,1713460238628,-153.0,0.000267,2]
[322876815,1713460238639,-153.0,0.000267,2]
[322876816,1713460238648,-153.0,0.000267,2]
[322876817,1713460238657,-153.0,0.000267,2]
[322876818,1713460238668,-153.0,0.000267,2]
[322876819,1713460238677,-320.4944368,0.000267,2]
[322876820,1713460238686,-153.0,0.000267,2]
[322876821,1713460238696,-153.0,0.000267,2]
[322876822,1713460238707,-153.0,0.000267,2]
[322876823,1713460238717,-153.0,0.000267,2]
[322876824,1713460238725,-153.0,0.000267,2]
[322876825,1713460238734,-153.0,0.00026877,2]
[322876826,1713460238743,-153.0,0.00026877,2]
[322876827,1713460238753,-204.09958443,0.00026948,2]
[322876828,1713460238762,-153.0,0.00027,2]
[322876829,1713460238771,-6000.316282,0.00027,2]
[322876830,1713460238780,-7915.74321018,0.00027,2]
[322876831,1713460238789,-153.0,0.00027078,2]
[322876832,1713460238799,-4422.93327751,0.00027396,2]
[322876897,1713460266566,692.13548975,0.00020957,2]
[322876898,1713460269233,11138.0526026,0.00020957,2]
[322876899,1713460347000,692.13548975,0.00020957,2]
[322876900,1713460364997,234.28535079,0.00020957,2]
[322876915,1713460636484,3062.24756483,0.00021,2]
[322876934,1713460781664,2538.89405828,0.00025,30]
[322876974,1713461432439,-1549.25736042,0.0002289,2]
[322876975,1713461432449,-154.93802479,0.0002289,2]
[322876976,1713461432458,-154.93802479,0.0002289,2]
[322876977,1713461432468,-519.40034216,0.00022891,2]
[322876978,1713461432478,-300.0,0.00022899,2]
[322876979,1713461432487,-300.0,0.00022899,2]
[322876980,1713461432497,-796.96767371,0.000229,2]
[322876981,1713461432507,-161.21276796,0.00024262,2]
[322876983,1713461432517,-644.22899558,0.00024375,2]
[322876985,1713461432527,-161.21276784,0.00024422,2]
[322876987,1713461432536,-161.21276784,0.00024581,2]
[322876989,1713461432546,-161.21276784,0.00024741,2]
[322876990,1713461432555,-250.0,0.00024758,2]
[322876991,1713461432564,-420.0,0.00024861,2]
[322876992,1713461432574,-161.21276784,0.00024901,2]
[322876993,1713461432583,-4397.4996606,0.00025034,2]
[322876994,1713461432593,-176.6784241,0.00025056,2]
[322876995,1713461432606,-161.21276784,0.00025061,2]
[322876996,1713461432615,-420.0,0.00025189,2]
[322876997,1713461432625,-161.21276784,0.0002522,2]
[322876998,1713461432634,-161.21276784,0.0002538,2]
[322876999,1713461432644,-161.21276784,0.0002554,2]
[322877000,1713461432653,-153.0,0.00025578,2]
[322877001,1713461432663,-621.21144978,0.00025594,2]
[322877002,1713461432673,-161.21276784,0.000257,2]
[322877003,1713461432683,-161.21276784,0.00025859,2]
[322877004,1713461432694,-161.21276784,0.00026019,2]
[322877005,1713461432703,-161.21276784,0.00026179,2]
[322877006,1713461432713,-161.21276784,0.00026339,2]
[322877007,1713461432723,-161.21276784,0.00026498,2]
[322877008,1713461432732,-216.49147,0.00026591,2]
[322877009,1713461432742,-161.21276784,0.00026658,2]
[322877010,1713461432751,-586.0,0.000268,2]
[322877011,1713461432761,-161.21276784,0.00026818,2]
[322877012,1713461432770,-1226.4855811,0.00026823,3]
[322877013,1713461432780,-620.06057249,0.00026874,2]
[322877014,1713461432790,-2000.0,0.000269,2]
[322877015,1713461432800,-298.44850417,0.000269,2]
[322877016,1713461432810,-161.21276784,0.00026978,2]
[322877017,1713461432820,-587.0,0.0002699,2]
[322877018,1713461432829,-2610.88488251,0.00026998,2]
[322877019,1713461432839,-151.0,0.00026999,2]
[322877020,1713461432850,-352.485381,0.00026999,2]
[322877021,1713461432860,-159.382158,0.00026999,2]
[322877022,1713461432870,-352.485381,0.00026999,2]
[322877023,1713461432879,-159.382158,0.00026999,2]
[322877024,1713461432888,-7915.74321018,0.00027,2]
[322877025,1713461432898,-309.59752631,0.00027,2]
[322877026,1713461432907,-151.0,0.00027,2]
[322877027,1713461432917,-151.0,0.00027,2]
[322877028,1713461432927,-151.0,0.00027,2]
[322877029,1713461432936,-151.0,0.00027,2]
[322877030,1713461432946,-151.0,0.00027,2]
[322877031,1713461432955,-177.717456,0.00027,2]
[322877032,1713461432965,-177.717456,0.00027,2]
[322877033,1713461432974,-151.0,0.00027,2]
[322877034,1713461432984,-151.0,0.00027,2]
[322877035,1713461432993,-151.0,0.00027,2]
[322877036,1713461433004,-151.0,0.00027,2]
[322877037,1713461433013,-151.0,0.00027,2]
[322877038,1713461433023,-8508.54349294,0.00027,2]
[322877039,1713461433033,-352.485381,0.00027,2]
[322877040,1713461433043,-352.485381,0.00027,2]
[322877041,1713461433053,-159.382158,0.00027,2]
[322877042,1713461433063,-159.382158,0.00027,2]
[322877043,1713461433072,-352.485381,0.00027,2]
[322877044,1713461433083,-352.485381,0.00027,2]
[322877045,1713461433092,-159.382158,0.00027,2]
[322877046,1713461433103,-159.382158,0.00027,2]
[322877047,1713461433113,-151.401165,0.00027,2]
[322877048,1713461433125,-151.0,0.00027,2]
[322877049,1713461433135,-151.0,0.00027,2]
[322877050,1713461433145,-332.13546511,0.00027,2]
[322877051,1713461433157,-1503.907048,0.00027,2]
[322877052,1713461433168,-1503.907048,0.00027,2]
[322877054,1713461433178,-1503.907048,0.00027,2]
[322877056,1713461433188,-1503.907048,0.00027,2]
[322877058,1713461433199,-1503.907048,0.00027,2]
[322877060,1713461433209,-1503.907048,0.00027,2]
[322877061,1713461433219,-413.370535,0.00027,2]
[322877064,1713461433229,-413.370535,0.00027,2]
[322877066,1713461433239,-413.370535,0.00027,2]
[322877068,1713461433248,-413.370535,0.00027,2]
[322877070,1713461433259,-413.370535,0.00027,2]
[322877072,1713461433268,-413.370535,0.00027,2]
[322877074,1713461433278,-413.370535,0.00027,2]
[322877076,1713461433289,-1298.554091,0.00027,2]
[322877078,1713461433299,-413.370535,0.00027,2]
[322877080,1713461433307,-1298.554091,0.00027,2]
[322877081,1713461433318,-1298.554091,0.00027,2]
[322877082,1713461433327,-1298.554091,0.00027,2]
[322877084,1713461433337,-1298.554091,0.00027,2]
[322877085,1713461433346,-1298.554091,0.00027,2]
[322877086,1713461433360,-177.717456,0.00027022,2]
[322877087,1713461433369,-177.717456,0.00027022,2]
[322877088,1713461433378,-151.0,0.00027022,2]
[322877089,1713461433387,-151.0,0.00027022,2]
[322877090,1713461433396,-204.536096,0.00027022,2]
[322877091,1713461433405,-151.0,0.00027022,2]
[322877092,1713461433415,-151.0,0.00027023,2]
[322877093,1713461433424,-151.0,0.00027023,2]
[322877094,1713461433433,-151.0,0.00027023,2]
[322877095,1713461433443,-156.724254,0.00027023,2]
[322877096,1713461433452,-156.724254,0.00027023,2]
[322877097,1713461433462,-156.724254,0.00027023,2]
[322877098,1713461433470,-156.724254,0.00027023,2]
[322877099,1713461433479,-177.717456,0.00027023,2]
[322877100,1713461433488,-177.717456,0.00027023,2]
[322877101,1713461433498,-151.0,0.00027023,2]
[322877102,1713461433507,-151.0,0.00027023,2]
[322877103,1713461433516,-151.0,0.00027023,2]
[322877104,1713461433525,-352.485381,0.00027023,2]
[322877105,1713461433534,-159.382158,0.00027023,2]
[322877106,1713461433544,-352.485381,0.00027023,2]
[322877107,1713461433553,-159.382158,0.00027023,2]
[322877108,1713461433561,-151.0,0.00027023,2]
[322877109,1713461433570,-1503.907048,0.00027023,2]
[322877110,1713461433579,-1503.907048,0.00027023,2]
[322877111,1713461433588,-1503.907048,0.00027023,2]
[322877112,1713461433599,-1503.907048,0.00027023,2]
[322877113,1713461433608,-413.370535,0.00027023,2]
[322877114,1713461433617,-413.370535,0.00027023,2]
[322877115,1713461433626,-413.370535,0.00027023,2]
[322877116,1713461433636,-413.370535,0.00027023,2]
[322877117,1713461433645,-1298.554091,0.00027023,2]
[322877118,1713461433654,-1298.554091,0.00027023,2]
[322877119,1713461433663,-1298.554091,0.00027023,2]
[322877120,1713461433676,-1298.554091,0.00027023,2]
[322877121,1713461433718,-151.237041,0.00027024,2]
[322877122,1713461433727,-172.638247,0.00027024,2]
[322877123,1713461433736,-172.638247,0.00027024,2]
[322877124,1713461433746,-151.841853,0.00027024,2]
[322877125,1713461433839,-413.370535,0.00027024,2]
[322877126,1713461433850,-413.370535,0.00027024,2]
[322877127,1713461433859,-298.44850415,0.00027052,2]
[322877128,1713461433869,-177.717456,0.00027099,2]
[322877129,1713461433878,-177.717456,0.00027099,2]
[322877130,1713461433887,-151.0,0.00027099,2]
[322877131,1713461433896,-238.97078,0.00027099,2]
[322877132,1713461433905,-352.485381,0.00027099,2]
[322877133,1713461433915,-159.382158,0.00027099,2]
[322877134,1713461433924,-352.485381,0.00027099,2]
[322877135,1713461433933,-159.382158,0.00027099,2]
[322877136,1713461433943,-1503.907048,0.00027099,2]
[322877137,1713461433952,-1503.907048,0.00027099,2]
[322877138,1713461433961,-413.370535,0.00027099,2]
[322877139,1713461433970,-413.370535,0.00027099,2]
[322877140,1713461433979,-1298.554091,0.00027099,2]
[322877141,1713461433988,-1298.554091,0.00027099,2]
[322877142,1713461433997,-544.12,0.0002712,3]
[322877143,1713461434006,-816.23,0.0002712,3]
[322877144,1713461434016,-1088.24,0.0002713,3]
[322877145,1713461434025,-272.06,0.0002713,3]
[322877146,1713461434035,-24847.11,0.0002713,3]
[322877147,1713461434046,-161.21276784,0.00027137,2]
[322877148,1713461434054,-2176.48,0.0002714,3]
[322877149,1713461434064,-413.370535,0.0002714,2]
[322877150,1713461434073,-413.370535,0.0002714,2]
[322877151,1713461434082,-413.370535,0.0002714,2]
[322877152,1713461434092,-413.370535,0.0002714,2]
[322877153,1713461434102,-151.0,0.0002715,2]
[322877154,1713461434111,-151.256745,0.0002715,2]
[322877155,1713461434122,-151.0,0.0002715,2]
[322877156,1713461434131,-151.0,0.0002715,2]
[322877157,1713461434140,-151.0,0.0002715,2]
[322877158,1713461434150,-151.0,0.0002715,2]
[322877159,1713461434159,-151.0,0.0002715,2]
[322877160,1713461434168,-151.0,0.0002715,2]
[322877161,1713461434177,-156.910446,0.0002715,2]
[322877162,1713461434186,-156.910446,0.0002715,2]
[322877163,1713461434196,-156.724254,0.0002715,2]
[322877164,1713461434205,-156.724254,0.0002715,2]
[322877165,1713461434214,-156.724254,0.0002715,2]
[322877166,1713461434223,-156.724254,0.0002715,2]
[322877167,1713461434233,-151.0,0.0002715,2]
[322877168,1713461434242,-151.0,0.0002715,2]
[322877169,1713461434252,-177.717456,0.0002715,2]
[322877170,1713461434261,-177.717456,0.0002715,2]
[322877171,1713461434271,-177.717456,0.0002715,2]
[322877172,1713461434280,-177.717456,0.0002715,2]
[322877173,1713461434290,-151.0,0.0002715,2]
[322877174,1713461434299,-151.0,0.0002715,2]
[322877175,1713461434308,-352.485381,0.0002715,2]
[322877176,1713461434317,-352.485381,0.0002715,2]
[322877177,1713461434326,-159.382158,0.0002715,2]
[322877178,1713461434335,-159.382158,0.0002715,2]
[322877179,1713461434345,-352.485381,0.0002715,2]
[322877180,1713461434356,-352.485381,0.0002715,2]
[322877181,1713461434365,-159.382158,0.0002715,2]
[322877182,1713461434374,-159.382158,0.0002715,2]
[322877183,1713461434383,-1503.907048,0.0002715,2]
[322877184,1713461434392,-1503.907048,0.0002715,2]
[322877185,1713461434401,-1503.907048,0.0002715,2]
[322877186,1713461434411,-1503.907048,0.0002715,2]
[322877187,1713461434420,-1503.907048,0.0002715,2]
[322877188,1713461434430,-1503.907048,0.0002715,2]
[322877189,1713461434439,-1298.554091,0.0002715,2]
[322877190,1713461434448,-1298.554091,0.0002715,2]
[322877191,1713461434457,-1298.554091,0.0002715,2]
[322877192,1713461434467,-1298.554091,0.0002715,2]
[322877193,1713461434476,-1298.554091,0.0002715,2]
[322877194,1713461434485,-1298.554091,0.0002715,2]
[322877195,1713461434495,-150.92453773,0.00027192,2]
[322877196,1713461434504,-2023.30647084,0.00027198,2]
[322877197,1713461434514,-29816.53,0.00027204,3]
[322877198,1713461434523,-298.44850415,0.00027204,2]
[322877199,1713461434532,-4352.96,0.00027214,3]
[322877200,1713461434541,-35779.84,0.00027234,3]
[322877201,1713461434549,-467.44,0.00027244,3]
[322877202,1713461434559,-1503.907048,0.00027244,2]
[322877203,1713461434568,-1503.90704,0.00027244,2]
[322877204,1713461434577,-1298.554091,0.00027244,2]
[322877205,1713461434586,-1298.554091,0.00027244,2]
[322877206,1713461434595,-172.638247,0.0002726,2]
[322877207,1713461434606,-172.638247,0.0002726,2]
[322877208,1713461434615,-151.0,0.00027274,2]
[322877209,1713461434624,-151.0,0.00027274,2]
[322877210,1713461434633,-156.910446,0.00027274,2]
[322877211,1713461434643,-156.910446,0.00027274,2]
[322877212,1713461434652,-156.724254,0.00027274,2]
[322877213,1713461434661,-156.724254,0.00027274,2]
[322877214,1713461434670,-177.717456,0.00027274,2]
[322877215,1713461434679,-177.717456,0.00027274,2]
[322877216,1713461434688,-177.717456,0.00027274,2]
[322877217,1713461434697,-177.717456,0.00027274,2]
[322877218,1713461434706,-151.0,0.00027274,2]
[322877219,1713461434716,-151.0,0.00027274,2]
[322877220,1713461434725,-352.485381,0.00027274,2]
[322877221,1713461434734,-352.485381,0.00027274,2]
[322877222,1713461434743,-159.382158,0.00027274,2]
[322877223,1713461434752,-159.382158,0.00027274,2]
[322877224,1713461434762,-352.485381,0.00027274,2]
[322877225,1713461434771,-352.485381,0.00027274,2]
[322877226,1713461434780,-159.382158,0.00027274,2]
[322877227,1713461434789,-159.382158,0.00027274,2]
[322877228,1713461434798,-352.485381,0.0002728,2]
[322877229,1713461434807,-159.382158,0.0002728,2]
[322877230,1713461434817,-352.485389,0.0002728,2]
[322877231,1713461434826,-159.38215,0.0002728,2]
[322877232,1713461434835,-5355.92,0.00027289,3]
[322877233,1713461434844,-2023.30647084,0.00027297,2]
[322877234,1713461434853,-161.21276784,0.00027297,2]
[322877235,1713461434862,-9859.388549,0.000273,2]
[322877236,1713461434871,-177.717456,0.000273,2]
[322877237,1713461434881,-177.717456,0.000273,2]
[322877238,1713461434890,-151.0,0.000273,2]
[322877239,1713461434899,-151.0,0.00027304,2]
[322877240,1713461434909,-151.0,0.00027304,2]
[322877241,1713461434918,-151.0,0.00027304,2]
[322877242,1713461434927,-151.0,0.00027304,2]
[322877243,1713461434936,-151.0,0.00027304,2]
[322877244,1713461434945,-156.724254,0.00027304,2]
[322877245,1713461434954,-156.724254,0.00027304,2]
[322877246,1713461434963,-177.717456,0.00027304,2]
[322877247,1713461434972,-177.717454,0.00027304,2]
[322877248,1713461434982,-151.0,0.00027304,2]
[322877249,1713461434991,-306.7405502,0.00027352,2]
[322877250,1713461435000,-399.72422395,0.00027369,2]
[322877251,1713461435009,-172.638247,0.0002737,2]
[322877252,1713461435018,-172.638247,0.0002737,2]
[322877253,1713461435027,-151.0,0.0002737,2]
[322877254,1713461435036,-151.0,0.0002737,2]
[322877255,1713461435049,-248.156179,0.0002737,2]
[322877256,1713461435059,-151.0,0.0002737,2]
[322877257,1713461435068,-151.0,0.0002737,2]
[322877258,1713461435077,-151.0,0.0002737,2]
[322877259,1713461435088,-151.0,0.0002737,2]
[322877260,1713461435098,-151.0,0.0002737,2]
[322877261,1713461435110,-151.0,0.0002737,2]
[322877262,1713461435120,-156.910446,0.0002737,2]
[322877263,1713461435130,-156.910446,0.0002737,2]
[322877264,1713461435140,-156.910446,0.0002737,2]
[322877265,1713461435149,-156.910446,0.0002737,2]
[322877266,1713461435159,-156.724254,0.0002737,2]
[322877267,1713461435168,-156.724254,0.0002737,2]
[322877268,1713461435178,-156.724254,0.0002737,2]
[322877269,1713461435187,-156.724254,0.0002737,2]
[322877270,1713461435197,-172.638247,0.0002739,2]
[322877271,1713461435206,-172.638247,0.0002739,2]
[322877272,1713461435216,-151.0,0.0002739,2]
[322877273,1713461435225,-153.191879,0.0002739,2]
[322877274,1713461435235,-151.0,0.0002739,2]
[322877275,1713461435244,-151.0,0.0002739,2]
[322877276,1713461435253,-172.326633,0.0002739,2]
[322877277,1713461435345,-151.0,0.0002739,2]
[322877278,1713461435357,-156.910446,0.0002739,2]
[322877279,1713461435367,-156.910446,0.0002739,2]
[322877280,1713461435377,-156.724254,0.0002739,2]
[322877281,1713461435387,-156.724254,0.0002739,2]
[322877282,1713461435396,-156.724254,0.0002739,2]
[322877283,1713461435405,-156.724256,0.0002739,2]
[322877284,1713461435415,-200.0,0.00027396,2]
[322877285,1713461435424,-507.72166856,0.00027396,2]
[322877286,1713461435434,-172.638247,0.00027397,2]
[322877287,1713461435442,-172.638247,0.00027397,2]
[322877288,1713461435452,-151.67482,0.00027397,2]
[322877289,1713461435461,-151.0,0.00027397,2]
[322877290,1713461435470,-151.0,0.00027397,2]
[322877291,1713461435479,-256.582378,0.00027397,2]
[322877292,1713461435487,-151.0,0.00027397,2]
[322877293,1713461435496,-151.0,0.00027397,2]
[322877294,1713461435505,-156.910446,0.00027397,2]
[322877295,1713461435514,-156.910446,0.00027397,2]
[322877296,1713461435523,-156.910446,0.00027397,2]
[322877297,1713461435533,-156.910446,0.00027397,2]
[322877298,1713461435543,-449.955524,0.00027397,2]
[322877299,1713461435553,-517.226105,0.00027397,2]
[322877300,1713461435563,-9181.854786,0.00027397,2]
[322877301,1713461435572,-166.666666,0.00027397,2]
[322877302,1713461435582,-1000.0,0.00027397,2]
[322877303,1713461435591,-950.0,0.000274,2]
[322877304,1713461435602,-151.0,0.000274,2]
[322877305,1713461435611,-158.387868,0.0002741,2]
[322877306,1713461435621,-156.910446,0.0002741,2]
[322877307,1713461435630,-156.910446,0.0002741,2]
[322877308,1713461435639,-176.810798,0.00027425,2]
[322877309,1713461435649,-168.456499,0.00027425,2]
[322877310,1713461435659,-167.200473,0.00027425,2]
[322877311,1713461435668,-156.910446,0.0002744,2]
[322877312,1713461435677,-156.910446,0.0002744,2]
[322877313,1713461435686,-156.910446,0.0002744,2]
[322877314,1713461435695,-156.910452,0.0002744,2]
[322877315,1713461435705,-151.0,0.0002745,2]
[322877316,1713461435714,-151.0,0.0002745,2]
[322877317,1713461435724,-154.94105672,0.00027468,2]
[322877318,1713461435734,-172.638247,0.00027469,2]
[322877319,1713461435743,-172.638247,0.00027469,2]
[322877320,1713461435752,-155.07041477,0.00027479,2]
[322877321,1713461435761,-151.331985,0.00027479,2]
[322877322,1713461435770,-172.638247,0.00027479,2]
[322877323,1713461435779,-172.638247,0.00027479,2]
[322877324,1713461435789,-172.638247,0.00027479,2]
[322877325,1713461435798,-172.638247,0.00027479,2]
[322877326,1713461435807,-172.638247,0.00027479,2]
[322877327,1713461435816,-172.638247,0.00027479,2]
[322877328,1713461435826,-172.638247,0.0002748,2]
[322877329,1713461435835,-172.638249,0.0002748,2]
[322877330,1713461435845,-203.59775165,0.00027488,2]
[322877331,1713461435856,-327.42633796,0.00027498,2]
[322877332,1713461435865,-1088.76018233,0.00027498,2]
[322877333,1713461435875,-193.41356933,0.00027498,2]
[322877334,1713461435885,-167.37229571,0.00027498,2]
[322877335,1713461435895,-160.60742711,0.00027498,2]
[322877336,1713461435904,-154.98357864,0.00027498,2]
[322877337,1713461435913,-154.95624087,0.00027498,2]
[322877338,1713461435923,-159.87423117,0.00027498,2]
[322877339,1713461435932,-255.12171964,0.00027498,2]
[322877340,1713461435942,-244.58345791,0.00027498,2]
[322877341,1713461435951,-270.82129437,0.00027498,2]
[322877342,1713461435960,-157.13016282,0.00027498,2]
[322877343,1713461435970,-31386.06444039,0.00027499,2]
[322877344,1713461435979,-187.56587097,0.00027499,10]
[322877345,1713461435988,-1544.53813385,0.00027499,2]
[322877346,1713461435997,-1500.0,0.00027499,10]
[322877347,1713461436007,-50000.0,0.000275,2]
[322877348,1713461436017,-2009.6799,0.000275,2]
[322877349,1713461436026,-805.00125816,0.000275,17]
[322877350,1713461436038,-1000.0,0.00027569,2]
[322877351,1713461436048,-1000.0,0.00027572,2]
[322877352,1713461436057,-1000.0,0.00027645,2]
[322877353,1713461436067,-587.0,0.00027708,2]
[322877354,1713461436077,-19394.28944474,0.000278,2]
[322877355,1713461436087,-176.810798,0.00027882,2]
[322877356,1713461436096,-1900.0,0.000279,2]
[322877357,1713461436108,-1900.0,0.000279,2]
[322877358,1713461436117,-796.96767371,0.000279,2]
[322877359,1713461436126,-486.55838509,0.0002799,2]
[322877360,1713461436136,-188.93614172,0.00027998,2]
[322877361,1713461436145,-243.31260589,0.00027998,2]
[322877362,1713461436154,-174.41683499,0.00027998,2]
[322877363,1713461436164,-265.49940207,0.00027998,2]
[322877364,1713461436173,-470.89831674,0.00027998,2]
[322877365,1713461436183,-309.72125088,0.00027998,2]
[322877366,1713461436192,-500.0,0.00027998,2]
[322877367,1713461436202,-15714.08976806,0.00027999,2]
[322877368,1713461436211,-29265.5113453,0.00028,2]
[322877369,1713461436222,-80000.0,0.00028,2]
[322877370,1713461436231,-1000.0,0.00028,28]
[322877371,1713461436241,-399.9,0.00028,2]
[322877372,1713461436250,-166.666666,0.00028038,2]
[322877373,1713461436259,-153.0,0.00028082,2]
[322877374,1713461436269,-153.0,0.00028082,2]
[322877375,1713461436278,-153.0,0.00028082,2]
[322877376,1713461436287,-168.456499,0.0002811,2]
[322877377,1713461436297,-620.00302862,0.00028217,2]
[322877378,1713461436306,-237.4180498,0.00028301,2]
[322877379,1713461436315,-153.0,0.00028301,2]
[322877380,1713461436325,-153.0,0.00028301,2]
[322877381,1713461436334,-176.810798,0.00028339,2]
[322877382,1713461436343,-1226.48558105,0.0002838,4]
[322877383,1713461436353,-1088.24,0.0002849,3]
[322877384,1713461436363,-2176.48,0.000285,3]
[322877385,1713461436372,-544.12,0.000285,3]
[322877386,1713461436382,-4352.96,0.0002851,3]
[322877387,1713461436391,-121251.99279953,0.00028584,5]
[322877388,1713461436400,-8705.92,0.00028584,3]
[322877389,1713461436410,-10711.84,0.00028659,3]
[322877390,1713461436419,-4732.38496553,0.0002867,2]
[322877391,1713461436428,-166.666666,0.00028679,2]
[322877392,1713461436437,-184518.87341201,0.0002877,2]
[322877393,1713461436447,-151.1669455,0.00028795,2]
[322877394,1713461436456,-176.810798,0.00028796,2]
[322877395,1713461436466,-168.456499,0.00028796,2]
[322877396,1713461436475,-267.22554995,0.00028829,2]
[322877397,1713461436484,-150.0,0.00028858,2]
[322877398,1713461436493,-151.57213384,0.00028999,2]
[322877399,1713461436502,-842.51405263,0.00029,2]
[322877400,1713461436512,-5000.0,0.00029,2]
[322877401,1713461436521,-300.0,0.00029,3]
[322877402,1713461436530,-1000.0,0.00029,29]
[322877403,1713461436539,-300.0,0.00029,2]
[322877404,1713461436548,-1000.0,0.00029,2]
[322877405,1713461436558,-299.0,0.0002909,2]
[322877406,1713461436567,-1690.750135,0.00029109,2]
[322877407,1713461436576,-422.687534,0.00029109,2]
[322877408,1713461436586,-428.556001,0.00029109,2]